{"text_format":"1","workbook":"xlsx","n_sheets":1,"sheets":["Price bid 06"],"not_rendered":{"charts":0,"images":0,"macros":1,"external_links":0,"defined_names":0,"comments":0,"pivot_tables":0},"unopened":[],"bounds":{"document_bytes":16777216,"sheet_cells":100000,"rows_first":2000,"rows_last":500,"rows_between":2000,"halvings":0,"cell_chars":16384,"cell_head_chars":4096},"cells_cut":0,"cells_raw":0,"read":"whole","date_system":"1900"}

{"sheet":"Price bid 06","index":0,"n_rows":39,"n_cols":10,"rows_kept":39,"cut":false,"hidden":false,"merged":[[34,0,34,9],[22,0,22,7],[23,0,23,7],[3,0,3,9],[5,0,5,9],[4,0,4,3],[21,1,21,2],[32,0,32,8],[29,3,29,9],[0,0,0,9],[1,0,1,9],[2,0,2,9],[33,0,33,9],[31,0,31,6]]}
["BHARAT HEAVY ELECTRICALS LIMITED JHANSI"]
["FACTORY CIVIL DEPARTMENT"]
["Price bid "]
["NAME OF WORK: Foundation and allied work for Vande Bharat project in BHEL Jhansi."]
["Tender Enquiry No- FCX/TW/24/16"]
["Part A-(DSR-2021 Items )"]
["Sl. No.","DSR 2021 ","Description of Work","% Allocation (Item-wise)","Unit ","Quantity ","Analysed rate of DSR-2021","Amount (in Rs.)","Rate per Unit (in Rs.)","Amount (in Rs.)"]
[1,"1.1.1","By Mechanical Transport including loading,unloading and stacking: Lime, moorum, building, rubbish (Upto 1 Km)",{"$f":"H8*0.4992/1075037.63","v":3.4704628631730509E-3},"Cum",58,128.85714285714283,{"$f":"F8*G8","v":7473.7142857142844},{"$f":" ROUND(J8/F8,4)","v":0},{"$f":"D8*$J$29","v":0}]
[{"$f":"A8+1","v":2},"1.1.2","Carriage of Earth  up 1 km",{"$f":"H9*0.4992/1075037.63","v":1.0471224156125584E-2},"Cum",140,161.07142857142856,{"$f":"F9*G9","v":22549.999999999996},{"$f":" ROUND(J9/F9,4)","v":0},{"$f":"D9*$J$29","v":0}]
[{"$f":"A9+1","v":3},"2.6.1","Earth work in excavation by mechanical means (Hydraulic excavator)/manual means over areas(exceeding 30 cm in depth, 1.5 m in width as well as 10 sqm on plan) including getting out and disposal of excavated earth lead upto 50 m and lift upto 1.5 m, as directed by Engineer-incharge:\nAll kinds of soil",1.5843530984120061E-2,"Cum",186,183.43749999999997,34119.374999999993,0,0]
[4,"2.7.1","Earth work in excavation by mechanical means (Hydraulic excavator)/manual means over areas (exceeding 30 cm in depth, 1.5 m in width as well as 10 sqm on plan) including getting out and disposal of excavated earth lead upto 50 m and lift upto 1.5 m, as directed by Engineer-incharge.: Ordinary  rock ",1.6093785612748403E-2,"Cum",94,368.70535714285711,34658.303571428565,0,0]
[5,2.25,"Filling available excavated earth (excluding rock) in trenches, plinth, sides of foundations etc. in layers not exceeding 20cm in depth, consolidating each deposited layer by ramming and watering, lead up to 50 m and lift upto 1.5 m.",1.4740395645499402E-2,"Cum",140,226.74107142857139,31743.749999999993,0,0]
[6,"4.1.6","Providing and laying in position cement concrete of specified grade excluding the cost of centering and shuttering - All work up to plinth level.  1:3:6 (1 Cement : 3 coarse sand (zone-III) derived from natural sources : 6 graded stone aggregate 40 mm\nnominal size derived from natural sources",4.3106484162260046E-2,"Cum",20,4641.5357142857147,92830.71428571429,0,0]
[7,"5.1.2","Providing and laying in position specified grade of reinforced cement concrete, excluding the cost of centering, shuttering, finishing and reinforcement - All work up to plinth level :\n1:1.5:3 (1 cement : 1.5 coarse sand (zone-III) derived from natural sources : 3 graded stone aggregate 20 mm nominal size de rived from natural sources)",0.29951641477490815,"Cum",127,5078.8571428571422,645014.85714285704,0,0]
[8,"5.9.1","Centering and shuttering including strutting, propping etc. and removal of form for: Foundations, footings, bases of columns, etc. for mass concrete",2.3620268197362671E-2,"Sqm",185,274.95535714285711,50866.741071428565,0,0]
[9,"5.22.6","Steel reinforcement for R.C.C. work including straightening, cutting, bending, placing in position and binding all complete upto plinth level. Thermo-Mechanically Treated bars of grade Fe-500D or more.",0.12105209430801837,"Kg",12120,21.508928571428569,260688.21428571426,0,0]
[10,"6.1.2","Brick work with common burnt clay F.P.S. (non modular) bricks of class designation 7.5 in foundation and plinth in: Cement mortar 1:6 (1 cement : 6 coarse sand)",3.1046201158824289E-2,"Cum",12,5571.5535714285716,66858.642857142855,0,0]
[11,"13.1.2","12 mm cement plaster of mix : 1:6 (1 cement: 6 fine sand)",5.0259222487469045E-3,"Sqm",47,230.28571428571428,10823.428571428571,0,0]
[12,"15.2.1","Demolishing cement concrete manually/ by mechanical means including disposal of material within 50 metres lead as per direction of Engineer - in - charge.Nominal concrete 1:3:6 or richer mix (i/c equivalent design mix.\n",4.9929032318085992E-3,"Cum",6,1792.0535714285711,10752.321428571428,0,0]
[13,15.3,"Demolishing R.C.C. work manually/ by mechanical means including stacking of steel bars and disposal of unserviceable material within 50 metres lead as per direction of Engineer - in- charge.",6.3128015342123409E-2,"Cum",52,2614.3749999999995,135947.49999999997,0,0]
[14,"DSR-21 ","Covered In DSR but not covered in above ",1.036508567877493E-2,"DSR",25000,0.89285714285714279,{"$f":"F21*G21","v":22321.428571428569},{"$f":" ROUND(J21/F21,4)","v":0},{"$f":"D21*$J$29","v":0}]
[null,"Sub Total (P)",null,{"$f":"SUM(D8:D21)","v":0.66247278836449386},null,null,null,{"$f":"SUM(H8:H21)","v":1426648.9910714286},null,{"$f":"SUM(J8:J21)","v":0}]
[]
["Part-B (Non -DSR items) "]
[1,"NS-1","Fabrication and erection of structural steel works at all heights(Maximum height up to 30.0 m) consisting of, railing, clamps, purlins with channels & angles,  M.S. flat, M.S. tubes, supports including all connections as per detailed drawings connected steel works etc. cleats, gusset plates all bolts, nuts, washers ,base plates, anchor bolts etc., as per detailed drawings cutting welding and painting 1 coats of red oxide primer before erection & 2 coats of synthetic enamel paint/Aluminium paint of approved brand & colour after erection complete. Advani made electrodes or other approved make electrodes are to be used. All bolts, nuts, washers, gas, electrodes are in contractor's scope. Fabrication to be done as per I.S. codes of latest revision. (All the materials are in contractor scope except the Structural steel. Structural steel shall be provided by BHEL free of cost.) (Make of paint and primer shall be Asian, Berger, Narolac and Salimar)\n"]
[null,"(a)","Only fabrication",{"$f":"H26/1075037.63","v":0.13508069527619659},"Kg",22139,6.5593220338983054,{"$f":"F26*G26","v":145216.83050847458},{"$f":" ROUND(J26/F26,4)","v":0},{"$f":"D26*$J$29","v":0}]
[null,"(b)","Only erection",{"$f":"H27/1075037.63","v":0.20244652005218097},"Kg",22139,9.8305084745762716,{"$f":"F27*G27","v":217637.62711864407},0,0]
[null,null,"Sub Total (Q)",{"$f":"SUM(D26:D27)","v":0.33752721532837759},null,null,"Rs ",{"$f":"SUM(H26:H27)","v":362854.45762711868},null,{"$f":"SUM(J26:J27)","v":0}]
[null,null,"Total  R= (P+Q)",{"$f":"D22+D28","v":1.0000000036928713},null,null,null,null,null,0]
[null,null,"In words ",{"$f":"rup(J29)","v":0}]
[]
[]
["Note -GST extra as applicable"]
["1. Bidder has to quote in above unlocked cell (J-29) only. Item rate shall be calculated automatically. Calculated item rates upto four  decimal points may be adjusted w.r.t. gross total amount and it shall be the itemwise final rate for  execution of contract and all other purposes."]
["2. Quoted gross total amount should be considered only if quoted in this excel sheet and print out of this should only be considered for evaluation.  If Price is quoted in any other format other than the Excel Sheet enclosed to the NIT , the offer of the bidder  will be rejected."]
[]
[]
[]
[null,null,null,null,null,null,null,null,"(Signature and Seal of  Contractor  )"]